{"text_format":"1","workbook":"xlsx","n_sheets":3,"sheets":["свод","3.1","3.2"],"not_rendered":{"charts":0,"images":0,"macros":1,"external_links":0,"defined_names":4,"comments":0,"pivot_tables":0},"unopened":[],"bounds":{"document_bytes":16777216,"sheet_cells":100000,"rows_first":2000,"rows_last":500,"rows_between":2000,"halvings":0,"cell_chars":16384,"cell_head_chars":4096},"cells_cut":0,"cells_raw":0,"read":"whole","date_system":"1900"}

{"sheet":"свод","index":0,"n_rows":14,"n_cols":5,"rows_kept":14,"cut":false,"hidden":false,"merged":[[11,3,11,4],[12,3,12,4],[13,3,13,4],[0,0,0,1],[0,2,0,4],[1,0,1,1],[3,0,3,1],[4,0,4,1],[6,3,6,4]]}
["Наименование закупки: ",null,"Выполнение комплекса строительно-монтажных работ по монтажу подкрановых путей крытого склада №1 и №2 на объекте «Терминал по перевалке минеральных удобрений в морском торговом порту Усть-Луга».\n"]
["Исх. № ______________ от __.__.2023г."]
[]
["Наименование Участника:"]
["ИНН Участника "]
[]
["№ п/п","Наименование","Требование ООО «ЕТУ»","Предложение Участника, руб без НДС"]
[null,null,null,"Материалы","Работы"]
[1,"Конструкции железобетонные. Ростверк., 07.03.010 Крытый склад № 1 (код SAP 01.01.001) код ГП 3.1",null,{"$f":"'3.1'!I116","v":411655.3},{"$f":"'3.1'!G116","v":24698865.100000001}]
[2,"Конструкции железобетонные. Ростверк., 07.03.010 Крытый склад № 2 (код SAP 01.01.001) код ГП 3.1",null,{"$f":"'3.2'!I109","v":458133.62},{"$f":"'3.2'!G109","v":26559256.219999999}]
[3,"Итоговая стоимость строительно-монтажных работ",null,{"$f":"D9+D10","v":869788.92},{"$f":"E9+E10","v":51258121.32}]
[4,"ВСЕГО",null,{"$f":"D11+E11","v":52127910.240000002}]
[5,"НДС",0.2,{"$f":"D12*0.2","v":10425582.050000001}]
[6,"Итоговая стоимость СМР, руб с НДС",null,{"$f":"D12+D13","v":62553492.289999999}]

{"sheet":"3.1","index":1,"n_rows":116,"n_cols":10,"rows_kept":116,"cut":false,"hidden":false,"merged":[[5,2,5,4],[1,0,1,8],[3,0,3,8],[2,0,2,8],[4,0,4,8]]}
[]
["Терминал по перевалке минеральных удобрений в морском торговом порту Усть-Луга. Береговые объекты терминала"]
["(наименование стройки)"]
["на на Конструкции железобетонные. Ростверк., 07.03.010 Крытый склад № 1 (код SAP 01.01.001) код ГП 3.1, "]
["(наименование работ и затрат, наименование объекта)"]
[null,"Основание:","1632-2021-3.1-КЖ1"]
[]
["№ п/п","Обоснование","Наименование работ и затрат","Ед. изм.","Кол-во","Цена за ед.измерения работ, руб. с НДС","Всего, стоимость работ,руб. с НДС","Цена за ед.измерения материалов, руб. с НДС","Всего, стоимость материалов, руб. с НДС"]
["1","2","3","4","5",6,7,8,9]
["Раздел 1. Рельсовый путь № 1"]
["1","ТЕР09-03-005-02","Монтаж подкрановых путей: по металлическим  подкрановым балкам для рельсов типа КР\n//вес 83,09 кг./м","100 м рельса в одну нитку",6.4989999999999997,{"$f":"G11/E11","v":1398677.04},9090002.0700000003,{"$f":"I11/E11","v":24775.22},161014.16]
[null,"101-0309","Канаты пеньковые пропитанные","т","0,0009\n0,0058",null,0,null,0]
[null,"101-0324","Кислород технический: газообразный","м3","16,58\n107,8",null,0,null,0]
[null,"101-0797","Проволока горячекатаная в мотках, диаметром 6,3-6,5 мм","т","0,0002\n0,0013",null,0,null,0]
[null,"101-1515","Электроды диаметром: 4 мм Э46","т","0,1\n0,6499",null,0,null,0]
[null,"101-1805","Гвозди строительные","т","0,0008\n0,0052",null,0,null,0]
[null,"101-2278","Пропан-бутан, смесь техническая","кг","5\n32,5",null,0,null,0]
[null,"101-2467","Растворитель марки: Р-4","т","0,0005\n0,0032",null,0,null,0]
[null,"102-0023","Бруски обрезные хвойных пород длиной: 4-6,5 м, шириной 75-150 мм, толщиной 40-75 мм, I сорта","м3","0,08\n0,5199",null,0,null,0]
[null,"113-0021","Грунтовка: ГФ-021 красно-коричневая","т","0,0026\n0,0169",null,0,null,0]
[null,"508-0097","Канат двойной свивки типа ТК, конструкции 6х19(1+6+12)+1 о.с., оцинкованный из проволок марки В, маркировочная группа: 1770 н/мм2, диаметром 5,5 мм","10 м","0,09\n0,5849",null,0,null,0]
["2\n*","ТССЦ-202-0017","Пути подкрановые, марка стали: С 255, крепления и упоры//Рельсовые комплекты","т",25.172709999999999,{"$f":"G22/E22","v":0},0,{"$f":"I22/E22","v":0},0]
["3\n*","ТССЦ-202-0016","Пути подкрановые, марка стали: С 255, рельсы железнодорожные","т",27.000095999999999,0,0,0,0]
["Раздел 2. Рельсовый путь № 2",null,null,null,null,null,0,null,0]
["4","ТЕР09-03-005-02","Монтаж подкрановых путей: по металлическим  подкрановым балкам для рельсов типа КР\n//вес 83,09 кг./м","100 м рельса в одну нитку",6.8545999999999996,1398676.94,9587370.9199999999,24775.22,169824.22]
[null,"101-0309","Канаты пеньковые пропитанные","т","0,0009\n0,0062",null,0,null,0]
[null,"101-0324","Кислород технический: газообразный","м3","16,58\n113,6",null,0,null,0]
[null,"101-0797","Проволока горячекатаная в мотках, диаметром 6,3-6,5 мм","т","0,0002\n0,0014",null,0,null,0]
[null,"101-1515","Электроды диаметром: 4 мм Э46","т","0,1\n0,6855",null,0,null,0]
[null,"101-1805","Гвозди строительные","т","0,0008\n0,0055",null,0,null,0]
[null,"101-2278","Пропан-бутан, смесь техническая","кг","5\n34,27",null,0,null,0]
[null,"101-2467","Растворитель марки: Р-4","т","0,0005\n0,0034",null,0,null,0]
[null,"102-0023","Бруски обрезные хвойных пород длиной: 4-6,5 м, шириной 75-150 мм, толщиной 40-75 мм, I сорта","м3","0,08\n0,5484",null,0,null,0]
[null,"113-0021","Грунтовка: ГФ-021 красно-коричневая","т","0,0026\n0,0178",null,0,null,0]
[null,"508-0097","Канат двойной свивки типа ТК, конструкции 6х19(1+6+12)+1 о.с., оцинкованный из проволок марки В, маркировочная группа: 1770 н/мм2, диаметром 5,5 мм","10 м","0,09\n0,6169",null,0,null,0]
["5\n*","ТССЦ-202-0017","Пути подкрановые, марка стали: С 255, крепления и упоры//Рельсовые комплекты","т",43.106340000000003,{"$f":"G36/E36","v":0},0,{"$f":"I36/E36","v":0},0]
["6\n*","ТССЦ-202-0016","Пути подкрановые, марка стали: С 255, рельсы железнодорожные","т",38.889572999999999,0,0,0,0]
["Раздел 3. Рельсовый путь № 3",null,null,null,null,null,0,null,0]
["7","ТЕР09-03-005-02","Монтаж подкрановых путей: по металлическим  подкрановым балкам для рельсов типа КР\n//вес 83,09 кг./м","100 м рельса в одну нитку",6.5439999999999996,1398676.91,9152941.7200000007,24775.22,162129.04999999999]
[null,"101-0309","Канаты пеньковые пропитанные","т","0,0009\n0,0059",null,0,null,0]
[null,"101-0324","Кислород технический: газообразный","м3","16,58\n108,5",null,0,null,0]
[null,"101-0797","Проволока горячекатаная в мотках, диаметром 6,3-6,5 мм","т","0,0002\n0,0013",null,0,null,0]
[null,"101-1515","Электроды диаметром: 4 мм Э46","т","0,1\n0,6544",null,0,null,0]
[null,"101-1805","Гвозди строительные","т","0,0008\n0,0052",null,0,null,0]
[null,"101-2278","Пропан-бутан, смесь техническая","кг","5\n32,72",null,0,null,0]
[null,"101-2467","Растворитель марки: Р-4","т","0,0005\n0,0033",null,0,null,0]
[null,"102-0023","Бруски обрезные хвойных пород длиной: 4-6,5 м, шириной 75-150 мм, толщиной 40-75 мм, I сорта","м3","0,08\n0,5235",null,0,null,0]
[null,"113-0021","Грунтовка: ГФ-021 красно-коричневая","т","0,0026\n0,017",null,0,null,0]
[null,"508-0097","Канат двойной свивки типа ТК, конструкции 6х19(1+6+12)+1 о.с., оцинкованный из проволок марки В, маркировочная группа: 1770 н/мм2, диаметром 5,5 мм","10 м","0,09\n0,589",null,0,null,0]
["8\n*","ТССЦ-202-0017","Пути подкрановые, марка стали: С 255, крепления и упоры//Рельсовые комплекты","т",12.101000000000001,{"$f":"G50/E50","v":0},0,{"$f":"I50/E50","v":0},0]
["9\n*","ТССЦ-202-0016","Пути подкрановые, марка стали: С 255, рельсы железнодорожные","т",4.1096320000000004,0,0,0,0]
["10","ТЕР46-08-012-05","Установка анкеров в отверстия глубиной 100 мм с применением смесей серии MASTERFLOW, диаметр анкера: 20 мм и более","100 шт.",13.06,34380.22,449005.61,0,0]
["11","ТЕР46-08-012-10","На каждые 10 мм изменения глубины отверстия добавлять (уменьшать) к расценке: 46-08-012-05","100 шт.",13.06,93601.03,1222429.46,0,0]
["12\n*","ТССЦ-509-5787","Анкер химический (капсула с клеевым составом) Hilti HIT-HY 150/330","шт.",1306,0,0,0,0]
["13\n*","ТССЦ-509-4617","Шпилька анкерная Hilti: HIT-V-5,8 М24х450 (HAS) для использования с химическими анкерами HIT","шт.",1306,0,0,0,0]
["Раздел 4. Подливка из безусадочного мелкозернистого бетона",null,null,null,null,null,0,null,0]
["Рельсовый путь № 3 длинна 327,2м толщ (разрез 15-15 лист 282) 54 мм ширина (разрез 15-15 лист 282) - 400 мм",null,null,null,null,null,0,null,0]
["Рельсовый путь № 2 длинна 342,73 м толщ (разрез 3-3 лист 282) 130 мм ширина (разрез 3-3 лист 282) - 600 мм",null,null,null,null,null,0,null,0]
["Рельсовый путь № 1 длинна 324,95 м толщ (разрез 1-1 лист 282) 150 мм ширина (разрез 1-1 лист 282) - 600 мм",null,null,null,null,null,0,null,0]
["Раздел 5. Крепление опорных деталей. Лист 282.2, 282.3",null,null,null,null,null,0,null,0]
["Крепление стоек к ростверку",null,null,null,null,null,0,null,0]
["14","ТЕР46-08-012-01","Установка анкеров в отверстия глубиной 100 мм с применением смесей серии MASTERFLOW, диаметр анкера: до 8 мм","100 шт.",2.96,14329.38,42414.96,0,0]
["15","ТЕР46-08-012-06","На каждые 10 мм изменения глубины отверстия добавлять (уменьшать) к расценке: 46-08-012-01","100 шт.",-2.96,4904.07,-14516.05,0,0]
["16\n*","ТССЦ-509-2631","Капсула с клеевым составом Hilti HVU-TZ M20","шт.",296,0,0,0,0]
["17\n*","ТССЦ-509-4616","Шпилька анкерная Hilti: HIT-V-5,8 М16х300 (HAS) для использования с химическими анкерами HIT","шт.",296,0,0,0,0]
["Крепление тормозных упоров крацер-крана к роствергу",null,null,null,null,null,0,null,0]
["18","ТЕР46-08-012-05","Установка анкеров в отверстия глубиной 100 мм с применением смесей серии MASTERFLOW, диаметр анкера: 20 мм и более","100 шт.",0.24,34379.21,8251.01,0,0]
["19","ТЕР46-08-012-10","На каждые 10 мм изменения глубины отверстия добавлять (уменьшать) к расценке: 46-08-012-05","100 шт.",0.24,124798.5,29951.64,0,0]
["20\n*","ТССЦ-509-4614","Анкер химический (капсула с клеевым составом) Hilti HVU М24/210","шт.",24,0,0,0,0]
["21\n*","ТССЦ-509-4617","Шпилька анкерная Hilti: HIT-V-5,8 М24х450 (HAS) для использования с химическими анкерами HIT","шт.",24,0,0,0,0]
["Крепление крацер-крана в сервесном положении",null,null,null,null,null,0,null,0]
["22","ТЕР46-08-012-01","Установка анкеров в отверстия глубиной 100 мм с применением смесей серии MASTERFLOW, диаметр анкера: до 8 мм","100 шт.",0.24,14324,3437.76,0,0]
["23","ТЕР46-08-012-06","На каждые 10 мм изменения глубины отверстия добавлять (уменьшать) к расценке: 46-08-012-01","100 шт.",0.24,36779.79,8827.15,0,0]
["24\n*","ТССЦ-509-2631","Капсула с клеевым составом Hilti HVU-TZ M20","шт.",24,0,0,0,0]
["25\n*","ТССЦ-509-4616","Шпилька анкерная Hilti: HIT-V-5,8 М16х300 (HAS) для использования с химическими анкерами HIT","шт.",24,0,0,0,0]
["Крепление стоек хвостовой станции к ростверку",null,null,null,null,null,0,null,0]
["26","ТЕР46-08-012-05","Установка анкеров в отверстия глубиной 100 мм с применением смесей серии MASTERFLOW, диаметр анкера: 20 мм и более","100 шт.",0.16,34375.25,5500.04,0,0]
["27","ТЕР46-08-012-10","На каждые 10 мм изменения глубины отверстия добавлять (уменьшать) к расценке: 46-08-012-05","100 шт.",0.16,93598.88,14975.82,0,0]
["28\n*","ТССЦ-509-4614","Анкер химический (капсула с клеевым составом) Hilti HVU М24/210","шт.",16,0,0,0,0]
["29\n*","ТССЦ-509-4617","Шпилька анкерная Hilti: HIT-V-5,8 М24х450 (HAS) для использования с химическими анкерами HIT","шт.",16,0,0,0,0]
["30","ТЕР46-03-014-01","Сверление вертикальных отверстий в железобетонных конструкциях полов перфоратором глубиной 200 мм диаметром: 20 мм","100 отверстий",0.08,17718.25,1417.46,0,0]
["31","ТЕР46-03-014-14","На каждые 10 мм изменения глубины сверления добавлять или исключать: к расценке 46-03-014-01","100 отверстий",-0.08,7297.13,-583.77,0,0]
["32","ТЕР06-01-015-03","Установка анкерных болтов: при бетонировании со связями из арматуры","1 т",2.317E-3,286309.88,663.38,159132.5,368.71]
[null,"101-1513","Электроды диаметром: 4 мм Э42","т","0,002\n0",null,0,null,0]
[null,"201-0798","Кондуктор инвентарный металлический","шт.","0,01\n0",null,0,null,0]
[null,"204-0005","Горячекатаная арматурная сталь гладкая класса А-I, диаметром: 14 мм","т","0,09\n0,0002",null,0,null,0]
[null,"204-0059","Анкерные детали из прямых или гнутых круглых стержней с резьбой (в комплекте с шайбами и гайками или без них),: поставляемые отдельно","т","1\n0,0023",null,0,null,0]
["Крепление тормазных упоров мобильного бункера",null,null,null,null,null,0,null,0]
["33","ТЕР46-08-012-05","Установка анкеров в отверстия глубиной 100 мм с применением смесей серии MASTERFLOW, диаметр анкера: 20 мм и более","100 шт.",0.18,{"$f":"G89/E89","v":34371.279999999999},6186.83,{"$f":"I89/E89","v":0},0]
["34","ТЕР46-08-012-10","На каждые 10 мм изменения глубины отверстия добавлять (уменьшать) к расценке: 46-08-012-05","100 шт.",0.18,93596.22,16847.32,0,0]
["35\n*","ТССЦ-509-4614","Анкер химический (капсула с клеевым составом) Hilti HVU М24/210","шт.",18,0,0,0,0]
["36\n*","ТССЦ-509-4617","Шпилька анкерная Hilti: HIT-V-5,8 М24х450 (HAS) для использования с химическими анкерами HIT","шт.",18,0,0,0,0]
["37","ТЕР46-03-014-01","Сверление вертикальных отверстий в железобетонных конструкциях полов перфоратором глубиной 200 мм диаметром: 20 мм","100 отверстий",0.18,17731.439999999999,3191.66,0,0]
["38","ТЕР46-03-014-14","На каждые 10 мм изменения глубины сверления добавлять или исключать: к расценке 46-03-014-01","100 отверстий",-0.18,7291.83,-1312.53,0,0]
["39","ТЕР06-01-015-03","Установка анкерных болтов: при бетонировании со связями из арматуры","1 т",4.0860000000000002E-3,286287.32,1169.77,159133.63,650.22]
[null,"101-1513","Электроды диаметром: 4 мм Э42","т","0,002\n0",null,0,null,0]
[null,"201-0798","Кондуктор инвентарный металлический","шт.","0,01\n0",null,0,null,0]
[null,"204-0005","Горячекатаная арматурная сталь гладкая класса А-I, диаметром: 14 мм","т","0,09\n0,0004",null,0,null,0]
[null,"204-0059","Анкерные детали из прямых или гнутых круглых стержней с резьбой (в комплекте с шайбами и гайками или без них),: поставляемые отдельно","т","1\n0,0041",null,0,null,0]
["Крепление стоек вертикального гравитационного натяжного устройтсва к ростверку",null,null,null,null,null,0,null,0]
["40","ТЕР46-08-012-01","Установка анкеров в отверстия глубиной 100 мм с применением смесей серии MASTERFLOW, диаметр анкера: до 8 мм","100 шт.",0.04,{"$f":"G101/E101","v":14308},572.32000000000005,{"$f":"I101/E101","v":0},0]
["41","ТЕР46-08-012-06","На каждые 10 мм изменения глубины отверстия добавлять (уменьшать) к расценке: 46-08-012-01","100 шт.",0.04,36771.75,1470.87,0,0]
["42\n*","ТССЦ-509-2631","Капсула с клеевым составом Hilti HVU-TZ M20","шт.",4,0,0,0,0]
["43\n*","ТССЦ-509-4616","Шпилька анкерная Hilti: HIT-V-5,8 М16х300 (HAS) для использования с химическими анкерами HIT","шт.",4,0,0,0,0]
["Крепление стоек орграждения к роствергу",null,null,null,null,null,0,null,0]
["44","ТЕР46-08-012-01","Установка анкеров в отверстия глубиной 100 мм с применением смесей серии MASTERFLOW, диаметр анкера: до 8 мм","100 шт.",0.24,14324,3437.76,0,0]
["45","ТЕР46-08-012-06","На каждые 10 мм изменения глубины отверстия добавлять (уменьшать) к расценке: 46-08-012-01","100 шт.",0.24,12257.29,2941.75,0,0]
["46\n*","ТССЦ-509-2631","Капсула с клеевым составом Hilti HVU-TZ M20","шт.",24,0,0,0,0]
["47\n*","ТССЦ-509-4616","Шпилька анкерная Hilti: HIT-V-5,8 М16х300 (HAS) для использования с химическими анкерами HIT","шт.",24,0,0,0,0]
["Крепление лебедки обслуживания к росвергу",null,null,null,null,null,0,null,0]
["48","ТЕР46-08-012-01","Установка анкеров в отверстия глубиной 100 мм с применением смесей серии MASTERFLOW, диаметр анкера: до 8 мм","100 шт.",0.04,14308,572.32000000000005,0,0]
["49","ТЕР46-08-012-06","На каждые 10 мм изменения глубины отверстия добавлять (уменьшать) к расценке: 46-08-012-01","100 шт.",0.04,36771.75,1470.87,0,0]
["50\n*","ТССЦ-509-2631","Капсула с клеевым составом Hilti HVU-TZ M20","шт.",4,0,0,0,0]
["51\n*","ТССЦ-509-4616","Шпилька анкерная Hilti: HIT-V-5,8 М16х300 (HAS) для использования с химическими анкерами HIT","шт.",4,0,null,0,null,"общая стоимость"]
[null,null,"Всего, руб. с НДС",null,null,null,{"$f":"SUM(G11:G114)","v":29638638.120000001},null,{"$f":"SUM(I11:I114)","v":493986.36},{"$f":"G115+I115","v":30132624.48}]
[null,null,"Всего, руб. без НДС",null,null,null,{"$f":"G115/1.2","v":24698865.100000001},null,{"$f":"I115/1.2","v":411655.3},{"$f":"G116+I116","v":25110520.399999999}]

{"sheet":"3.2","index":2,"n_rows":109,"n_cols":10,"rows_kept":109,"cut":false,"hidden":false,"merged":[[3,0,3,8],[2,0,2,8],[1,0,1,8],[5,2,5,4],[4,0,4,8]]}
[]
["Терминал по перевалке минеральных удобрений в морском торговом порту Усть-Луга. Береговые объекты терминала"]
["(наименование стройки)"]
["на на Конструкции железобетонные. Ростверк., 07.03.010 Крытый склад № 2 (код SAP 01.01.001) код ГП 3.1, "]
["(наименование работ и затрат, наименование объекта)"]
[null,"Основание:","1632-2021-3.2-КЖ1"]
[]
["№ п/п","Обоснование","Наименование работ и затрат","Ед. изм.","Кол-во","Цена за ед.измерения работ, руб. с НДС","Всего, стоимость работ,руб. с НДС","Цена за ед.измерения материалов, руб. с НДС","Всего, стоимость материалов, руб. с НДС"]
["1","2","3","4","5",6,7,8,9]
["Раздел 1. Рельсовый путь № 1"]
["1","ТЕР09-03-005-02","Монтаж подкрановых путей: по металлическим  подкрановым балкам для рельсов типа КР\n//вес 83,09 кг./м","100 м рельса в одну нитку",7.6948999999999996,{"$f":"G11/E11","v":1316310.92},10128880.880000001,{"$f":"I11/E11","v":23316.240000000002},179416.16]
[null,"101-0309","Канаты пеньковые пропитанные","т","0,0009\n0,0069",null,0,null,0]
[null,"101-0324","Кислород технический: газообразный","м3","16,58\n127,6",null,0,null,0]
[null,"101-0797","Проволока горячекатаная в мотках, диаметром 6,3-6,5 мм","т","0,0002\n0,0015",null,0,null,0]
[null,"101-1515","Электроды диаметром: 4 мм Э46","т","0,1\n0,7695",null,0,null,0]
[null,"101-1805","Гвозди строительные","т","0,0008\n0,0062",null,0,null,0]
[null,"101-2278","Пропан-бутан, смесь техническая","кг","5\n38,47",null,0,null,0]
[null,"101-2467","Растворитель марки: Р-4","т","0,0005\n0,0038",null,0,null,0]
[null,"102-0023","Бруски обрезные хвойных пород длиной: 4-6,5 м, шириной 75-150 мм, толщиной 40-75 мм, I сорта","м3","0,08\n0,6156",null,0,null,0]
[null,"113-0021","Грунтовка: ГФ-021 красно-коричневая","т","0,0026\n0,02",null,0,null,0]
[null,"508-0097","Канат двойной свивки типа ТК, конструкции 6х19(1+6+12)+1 о.с., оцинкованный из проволок марки В, маркировочная группа: 1770 н/мм2, диаметром 5,5 мм","10 м","0,09\n0,6925",null,0,null,0]
["2\n*","ТССЦ-202-0017","Пути подкрановые, марка стали: С 255, крепления и упоры//Рельсовые комплекты","т",29.783619999999999,{"$f":"G22/E22","v":0},0,{"$f":"I22/E22","v":0},0]
["3\n*","ТССЦ-202-0016","Пути подкрановые, марка стали: С 255, рельсы железнодорожные","т",31.968461999999999,0,0,0,0]
["Раздел 2. Рельсовый путь № 2",null,null,null,null,null,0,null,0]
["Раздел 2. Рельсовый путь № 2",null,null,null,null,null,0,null,0]
["4","ТЕР09-03-005-02","Монтаж подкрановых путей: по металлическим  подкрановым балкам для рельсов типа КР\n//вес 83,09 кг./м","100 м рельса в одну нитку",8.0701999999999998,1316311.06,10622893.48,23316.240000000002,188166.74]
[null,"101-0309","Канаты пеньковые пропитанные","т","0,0009\n0,0073",null,0,null,0]
[null,"101-0324","Кислород технический: газообразный","м3","16,58\n133,8",null,0,null,0]
[null,"101-0797","Проволока горячекатаная в мотках, диаметром 6,3-6,5 мм","т","0,0002\n0,0016",null,0,null,0]
[null,"101-1515","Электроды диаметром: 4 мм Э46","т","0,1\n0,807",null,0,null,0]
[null,"101-1805","Гвозди строительные","т","0,0008\n0,0065",null,0,null,0]
[null,"101-2278","Пропан-бутан, смесь техническая","кг","5\n40,35",null,0,null,0]
[null,"101-2467","Растворитель марки: Р-4","т","0,0005\n0,004",null,0,null,0]
[null,"102-0023","Бруски обрезные хвойных пород длиной: 4-6,5 м, шириной 75-150 мм, толщиной 40-75 мм, I сорта","м3","0,08\n0,6456",null,0,null,0]
[null,"113-0021","Грунтовка: ГФ-021 красно-коричневая","т","0,0026\n0,021",null,0,null,0]
[null,"508-0097","Канат двойной свивки типа ТК, конструкции 6х19(1+6+12)+1 о.с., оцинкованный из проволок марки В, маркировочная группа: 1770 н/мм2, диаметром 5,5 мм","10 м","0,09\n0,7263",null,0,null,0]
["5\n*","ТССЦ-202-0017","Пути подкрановые, марка стали: С 255, крепления и упоры//Рельсовые комплекты","т",31.731100000000001,0,0,0,0]
["6\n*","ТССЦ-202-0016","Пути подкрановые, марка стали: С 255, рельсы железнодорожные","т",45.786279999999998,0,0,0,0]
["Раздел 3. Рельсовый путь № 3",null,null,null,null,null,0,null,0]
["Раздел 3. Рельсовый путь № 3",null,null,null,null,null,0,null,0]
["7","ТЕР09-03-005-02","Монтаж подкрановых путей: по металлическим  подкрановым балкам для рельсов типа КР\n//вес 83,09 кг./м","100 м рельса в одну нитку",7.7721999999999998,1316310.95,10230632,23316.240000000002,181218.51]
[null,"101-0309","Канаты пеньковые пропитанные","т","0,0009\n0,007",null,0,null,0]
[null,"101-0324","Кислород технический: газообразный","м3","16,58\n128,9",null,0,null,0]
[null,"101-0797","Проволока горячекатаная в мотках, диаметром 6,3-6,5 мм","т","0,0002\n0,0016",null,0,null,0]
[null,"101-1515","Электроды диаметром: 4 мм Э46","т","0,1\n0,7772",null,0,null,0]
[null,"101-1805","Гвозди строительные","т","0,0008\n0,0062",null,0,null,0]
[null,"101-2278","Пропан-бутан, смесь техническая","кг","5\n38,86",null,0,null,0]
[null,"101-2467","Растворитель марки: Р-4","т","0,0005\n0,0039",null,0,null,0]
[null,"102-0023","Бруски обрезные хвойных пород длиной: 4-6,5 м, шириной 75-150 мм, толщиной 40-75 мм, I сорта","м3","0,08\n0,6218",null,0,null,0]
[null,"113-0021","Грунтовка: ГФ-021 красно-коричневая","т","0,0026\n0,0202",null,0,null,0]
[null,"508-0097","Канат двойной свивки типа ТК, конструкции 6х19(1+6+12)+1 о.с., оцинкованный из проволок марки В, маркировочная группа: 1770 н/мм2, диаметром 5,5 мм","10 м","0,09\n0,6995",null,0,null,0]
["8\n*","ТССЦ-202-0017","Пути подкрановые, марка стали: С 255, крепления и упоры//Рельсовые комплекты","т",14.42985,0,0,0,0]
["9\n*","ТССЦ-202-0016","Пути подкрановые, марка стали: С 255, рельсы железнодорожные","т",4.8809420000000001,0,0,0,0]
["10","ТЕР46-08-012-01","Установка анкеров в отверстия глубиной 100 мм с применением смесей серии MASTERFLOW, диаметр анкера: до 8 мм","100 шт.",15.46,13485.62,208487.61,0,0]
["11","ТЕР46-08-012-06","На каждые 10 мм изменения глубины отверстия добавлять (уменьшать) к расценке: 46-08-012-01","100 шт.",15.46,34616.559999999998,535172.01,0,0]
["12\n*","ТССЦ-509-2631","Капсула с клеевым составом Hilti HVU-TZ M20","шт.",1546,0,0,0,0]
["13\n*","ТССЦ-509-4616","Шпилька анкерная Hilti: HIT-V-5,8 М16х300 (HAS) для использования с химическими анкерами HIT","шт.",1546,0,0,0,0]
["Раздел 4. Подливка из безусадочного мелкозернистого бетона",null,null,null,null,null,0,null,0]
["Рельсовый путь № 3 длинна 388,61 толщ (разрез 15-15 лист 424) 54 мм ширина (разрез 15-15 лист 424) - 400 мм",null,null,null,null,null,0,null,0]
["Рельсовый путь № 2 длинна 403,510 м толщ (разрез 3-3 лист 424) 130 мм ширина (разрез 3-3 лист 424) - 600 мм",null,null,null,null,null,0,null,0]
["Рельсовый путь № 1 длинна 384,745 м толщ (разрез 1-1 лист 424) 150 мм ширина (разрез 1-1 лист 424) - 600 мм",null,null,null,null,null,0,null,0]
["Раздел 5. Крепление опорных деталей. Лист 282.2, 282.3",null,null,null,null,null,0,null,0]
["Раздел 5. Крепление опорных деталей. Лист 424,.2, 424.3",null,null,null,null,null,0,null,0]
["Крепление стоек к ростверку",null,null,null,null,null,0,null,0]
["14","ТЕР46-08-012-01","Установка анкеров в отверстия глубиной 100 мм с применением смесей серии MASTERFLOW, диаметр анкера: до 8 мм","100 шт.",3.42,13485.47,46120.32,0,0]
["15","ТЕР46-08-012-06","На каждые 10 мм изменения глубины отверстия добавлять (уменьшать) к расценке: 46-08-012-01","100 шт.",3.42,4615.03,15783.39,0,0]
["16\n*","ТССЦ-509-2631","Капсула с клеевым составом Hilti HVU-TZ M20","шт.",342,0,0,0,0]
["17\n*","ТССЦ-509-4616","Шпилька анкерная Hilti: HIT-V-5,8 М16х300 (HAS) для использования с химическими анкерами HIT","шт.",342,0,0,0,0]
["Крепление тормозных упоров крацер-крана к роствергу",null,null,null,null,null,0,null,0]
["18","ТЕР46-08-012-05","Установка анкеров в отверстия глубиной 100 мм с применением смесей серии MASTERFLOW, диаметр анкера: 20 мм и более","100 шт.",0.24,32354.67,7765.12,0,0]
["19","ТЕР46-08-012-10","На каждые 10 мм изменения глубины отверстия добавлять (уменьшать) к расценке: 46-08-012-05","100 шт.",0.24,117449.29,28187.83,0,0]
["20\n*","ТССЦ-509-4614","Анкер химический (капсула с клеевым составом) Hilti HVU М24/210","шт.",24,0,0,0,0]
["21\n*","ТССЦ-509-4617","Шпилька анкерная Hilti: HIT-V-5,8 М24х450 (HAS) для использования с химическими анкерами HIT","шт.",24,0,0,0,0]
["Крепление крацер-крана в сервесном положении",null,null,null,null,null,0,null,0]
["22","ТЕР46-08-012-01","Установка анкеров в отверстия глубиной 100 мм с применением смесей серии MASTERFLOW, диаметр анкера: до 8 мм","100 шт.",0.24,13480.5,3235.32,0,0]
["23","ТЕР46-08-012-06","На каждые 10 мм изменения глубины отверстия добавлять (уменьшать) к расценке: 46-08-012-01","100 шт.",0.24,{"$f":"G76/E76","v":34613.879999999997},8307.33,{"$f":"I76/E76","v":0},0]
["24\n*","ТССЦ-509-2631","Капсула с клеевым составом Hilti HVU-TZ M20","шт.",24,0,0,0,0]
["25\n*","ТССЦ-509-4616","Шпилька анкерная Hilti: HIT-V-5,8 М16х300 (HAS) для использования с химическими анкерами HIT","шт.",24,0,0,0,0]
["Крепление стоек подъемной карентки к роствергу",null,null,null,null,null,0,null,0]
["26","ТЕР46-08-012-01","Установка анкеров в отверстия глубиной 100 мм с применением смесей серии MASTERFLOW, диаметр анкера: до 8 мм","100 шт.",0.16,13476.75,2156.2800000000002,0,0]
["27","ТЕР46-08-012-06","На каждые 10 мм изменения глубины отверстия добавлять (уменьшать) к расценке: 46-08-012-01","100 шт.",0.16,34606.379999999997,5537.02,0,0]
["28\n*","ТССЦ-509-4614","Анкер химический (капсула с клеевым составом) Hilti HVU М24/210","шт.",16,0,0,0,0]
["29\n*","ТССЦ-509-4617","Шпилька анкерная Hilti: HIT-V-5,8 М24х450 (HAS) для использования с химическими анкерами HIT","шт.",16,0,0,0,0]
["30","ТЕР46-03-014-01","Сверление вертикальных отверстий в железобетонных конструкциях полов перфоратором глубиной 200 мм диаметром: 20 мм","100 отверстий",0.08,16674.75,1333.98,0,0]
["31","ТЕР46-03-014-14","На каждые 10 мм изменения глубины сверления добавлять или исключать: к расценке 46-03-014-01","100 отверстий",-0.08,6867.38,-549.39,0,0]
["32","ТЕР06-01-015-03","Установка анкерных болтов: при бетонировании со связями из арматуры","1 т",2.317E-3,269451.88,624.32000000000005,149762.62,347]
[null,"101-1513","Электроды диаметром: 4 мм Э42","т","0,002\n0",null,0,null,0]
[null,"201-0798","Кондуктор инвентарный металлический","шт.","0,01\n0",null,0,null,0]
[null,"204-0005","Горячекатаная арматурная сталь гладкая класса А-I, диаметром: 14 мм","т","0,09\n0,0002",null,0,null,0]
[null,"204-0059","Анкерные детали из прямых или гнутых круглых стержней с резьбой (в комплекте с шайбами и гайками или без них),: поставляемые отдельно","т","1\n0,0023",null,0,null,0]
["Крепление тормазных упоров мобильного бункера",null,null,null,null,null,0,null,0]
["33","ТЕР46-08-012-01","Установка анкеров в отверстия глубиной 100 мм с применением смесей серии MASTERFLOW, диаметр анкера: до 8 мм","100 шт.",0.18,13485.5,2427.39,0,0]
["34","ТЕР46-08-012-06","На каждые 10 мм изменения глубины отверстия добавлять (уменьшать) к расценке: 46-08-012-01","100 шт.",0.18,34611.39,6230.05,0,0]
["35\n*","ТССЦ-509-4614","Анкер химический (капсула с клеевым составом) Hilti HVU М24/210","шт.",18,0,0,0,0]
["36\n*","ТССЦ-509-4617","Шпилька анкерная Hilti: HIT-V-5,8 М24х450 (HAS) для использования с химическими анкерами HIT","шт.",18,0,0,0,0]
["37","ТЕР46-03-014-01","Сверление вертикальных отверстий в железобетонных конструкциях полов перфоратором глубиной 200 мм диаметром: 20 мм","100 отверстий",0.18,16687.28,3003.71,0,0]
["38","ТЕР46-03-014-14","На каждые 10 мм изменения глубины сверления добавлять или исключать: к расценке 46-03-014-01","100 отверстий",-0.18,6862.44,-1235.24,0,0]
["39","ТЕР06-01-015-03","Установка анкерных болтов: при бетонировании со связями из арматуры","1 т",4.0860000000000002E-3,269429.76000000001,1100.8900000000001,149762.6,611.92999999999995]
[null,"101-1513","Электроды диаметром: 4 мм Э42","т","0,002\n0",null,0,null,0]
[null,"201-0798","Кондуктор инвентарный металлический","шт.","0,01\n0",null,0,null,0]
[null,"204-0005","Горячекатаная арматурная сталь гладкая класса А-I, диаметром: 14 мм","т","0,09\n0,0004",null,0,null,0]
[null,"204-0059","Анкерные детали из прямых или гнутых круглых стержней с резьбой (в комплекте с шайбами и гайками или без них),: поставляемые отдельно","т","1\n0,0041",null,0,null,0]
["Крепление стоек орграждения к роствергу",null,null,null,null,null,0,null,0]
["40","ТЕР46-08-012-01","Установка анкеров в отверстия глубиной 100 мм с применением смесей серии MASTERFLOW, диаметр анкера: до 8 мм","100 шт.",0.6,13483.48,8090.09,0,0]
["41","ТЕР46-08-012-06","На каждые 10 мм изменения глубины отверстия добавлять (уменьшать) к расценке: 46-08-012-01","100 шт.",0.6,11538.45,6923.07,0,0]
["42\n*","ТССЦ-509-2631","Капсула с клеевым составом Hilti HVU-TZ M20","шт.",60,0,0,0,0]
["43\n*","ТССЦ-509-4616","Шпилька анкерная Hilti: HIT-V-5,8 М16х300 (HAS) для использования с химическими анкерами HIT","шт.",60,0,null,0,null,"общая стоимость"]
[null,null,"Всего, руб. с НДС",null,null,null,{"$f":"SUM(G11:G107)","v":31871107.460000001},null,{"$f":"SUM(I11:I107)","v":549760.34},{"$f":"G108+I108","v":32420867.800000001}]
[null,null,"Всего, руб. без НДС",null,null,null,{"$f":"G108/1.2","v":26559256.219999999},null,{"$f":"I108/1.2","v":458133.62},{"$f":"G109+I109","v":27017389.84}]